Cogmind - Beta 15 @@@ ROGUE MODE // 2025.05.16 @ 12:59:21 Player: ZLD1 Result: Destroyed by Shrapnel Trap Performance ------------- Evolutions (0) 0 Regions Visited (2) 400 Robots Destroyed (24) 120 Value Destroyed (702) 702 Prototype IDs (0) 0 Alien Tech Used (0) 0 Bonus (0) 0 TOTAL SCORE: 1222 Bonus ------- None Cogmind --------- Core Integrity 0/250 Matter 274/300 Energy 199/200 System Corruption 0% Temperature Cool (0) Movement Core (200) Ox3 Location -10/Subcaves Parts ------- > --- POWER (1) -------- Subdweller Power Source > --- PROPULSION (2) --- Subdweller Monowheel > --- UTILITY (2) ------ Sensor Array Signal Interpreter > --- WEAPON (2) ------- Heavy Hammer Heavy Hammer > --- INVENTORY (5) ---- Slug Cannon Heavy Hammer Heavy Hammer Makeshift Axe Scrap Shield Fragment (36) Peak State ------------ > --- POWER ------------ Subdweller Power Source > --- PROPULSION ------- Aluminum Leg Makeshift Leg > --- UTILITY ---------- Small Storage Unit Signal Interpreter > --- WEAPON ----------- Heavy Hammer Heavy Hammer > --- INVENTORY -------- Ion Engine Subdweller Monowheel Sensor Array Light Assault Rifle Light Assault Rifle Heavy Hammer Heavy Hammer Scrap Shield Fragment [Rating: 14] Favorites ----------- Power Subdweller Power Source Engine Subdweller Power Source Propulsion Aluminum Leg Leg Aluminum Leg Wheel Subdweller Monowheel Utility Signal Interpreter Device Sensor Array Storage Small Storage Unit Processor Signal Interpreter Weapon Heavy Hammer Ballistic Gun Light Assault Rifle Impact Weapon Heavy Hammer Build | -11 -10 -10 ------- Run | Yrd Mat Sub Slots Evolved . | . . . Power . | . . . Propulsion . | . . . Utility . | . . . Weapon . | . . . Parts Attached 18 | 6 6 6 Power 4 | 1 1 2 Engine 4 | 1 1 2 Core . | . . . Reactor . | . . . Propulsion 7 | 2 2 3 Treads . | . . . Leg 6 | 2 2 2 Wheel 1 | . . 1 Hover . | . . . Flight . | . . . Utility 3 | 1 1 1 Device 1 | . . 1 Storage 1 | 1 . . Processor 1 | . 1 . Hackware . | . . . Protection . | . . . Artifact . | . . . Weapon 4 | 2 2 . Energy Gun . | . . . Energy Cannon . | . . . Ballistic Gun 2 | 2 . . Ballistic Cannon . | . . . Launcher . | . . . Special Weapon . | . . . Impact Weapon 2 | . 2 . Slashing Weapon . | . . . Piercing Weapon . | . . . Special Melee Weapon . | . . . Unidentified Prototypes . | . . . Parts Lost 5 | . 2 3 Power 1 | . 1 . Propulsion 3 | . 1 2 Utility 1 | . . 1 Weapon . | . . . Highest Loss Streak 3 | . 2 3 To Critical Strikes . | . . . Average Backups 5 | 1 5 5 Power . | . . . Propulsion . | . . . Utility . | . . . Weapon 3 | . 3 3 Tool/Special . | . . . Unused Backups 6 | . . 6 Power 1 | . . 1 Propulsion . | . . . Utility 1 | . . 1 Weapon 4 | . . 4 Tool/Special . | . . . Average Slot Usage (%) 91 | . 86 92 Engine 13 | . 12 14 Leg 17 | . 28 14 Wheel 5 | . . 6 Device 5 | . . 6 Storage 8 | . 14 7 Processor 11 | . 4 14 Impact Weapon 27 | . 26 28 Peak Build Rating 14 | 6 9 14 Average Rating 10 | 3 8 10 On Entrance 5 | . 6 9 Naked Turns . | . . . Heaviest Build 16 | 10 14 16 Greatest Support 30 | 20 20 30 Greatest Overweight (x) 3 | . 1 3 Average Overweight (x) . | . . . Largest Inventory Capacity 8 | 8 8 8 Average Capacity 6 | 6 8 6 Most Carried 8 | 4 7 8 Average Carried 5 | 1 5 6 Final Capacity 8 | 8 8 5 Final Carried 6 | 1 6 5 Class Distribution -------------------- 100% | Mutant Dominant Class ---------------- Mutant | -10/Materials Mutant | -10/Subcaves Resources | -11 -10 -10 ----------- Run | Yrd Mat Sub Matter Collected 354 | 141 179 34 Remotely . | . . . Salvage Created 850 | . 587 263 Parts 21 | . 11 10 Haulers Intercepted 1 | . 1 . Recyclers Shooed . | . . . Parts Field Recycled . | . . . Retrieved Matter . | . . . Parts Self-Destructed 4 | . . 4 Prevented . | . . . Kills | -11 -10 -10 ------- Run | Yrd Mat Sub Combat Hostiles Destroyed 17 | . 10 7 Melee 9 | . 6 3 Classes Destroyed 7 | . 6 1 Builder 3 | . 3 . Hauler 1 | . 1 . Recycler 1 | . 1 . Operator 1 | . 1 . Watcher 1 | . 1 . Grunt 12 | . 10 2 Subdweller 5 | . . 5 Best Kill Streak 10 | . 10 2 Combat Bots Only 5 | . 5 2 Max Kills in Single Turn 1 | . 1 1 Gunslinging . | . . . Exploded . | . . . Melee 1 | . 1 1 Uniques/NPCs Destroyed . | . . . Combat | -11 -10 -10 -------- Run | Yrd Mat Sub Hostile Shots Fired 84 | . 49 35 Missed 26 | . 18 8 Hits 58 | . 31 27 Projectile 58 | . 31 27 AOE 2 | . . 2 Critical Strikes 2 | . . 2 Damage Taken 1055 | . 386 669 Core 269 | . 86 183 Absorbed by Shields . | . . . Core Remaining (%) 100 | 100 . . Volleys Fired . | . . . Largest . | . . . Hottest . | . . . Shots Fired . | . . . Gun . | . . . Cannon . | . . . Launcher . | . . . Special . | . . . Kinetic . | . . . Thermal . | . . . Explosive . | . . . Electromagnetic . | . . . Robot Hit Streak . | . . . Robot Miss Streak . | . . . Penetration Max . | . . . Secondary Targets . | . . . Shots Hit Robots 59 | . 39 20 Core Hits 11 | . 8 3 Critical Kills 1 | . . 1 Critical Parts Destroyed 10 | . 7 3 Critical Strikes 14 | . 7 7 Smash 14 | . 7 7 Melee Attacks 70 | . 45 25 Impact 70 | . 45 25 Slashing . | . . . Piercing . | . . . Sneak Attacks 11 | . 10 1 Combat Hostiles 1 | . . 1 Follow-up Attacks 8 | . 7 1 Damage Inflicted 2685 | . 2006 679 Guns . | . . . Cannons . | . . . Explosions . | . . . Melee 2685 | . 2006 679 Ramming . | . . . Kinetic . | . . . Thermal . | . . . Explosive . | . . . Electromagnetic . | . . . Impact 2685 | . 2006 679 Slashing . | . . . Piercing . | . . . Highest Corruption . | . . . Average Corruption . | . . . Corruption Purged . | . . . Corruption Blocked . | . . . Overload Shots . | . . . Overflow Damage 894 | . 744 150 Projectiles . | . . . Explosions . | . . . Melee 894 | . 744 150 Knockbacks 16 | . 8 8 Impact 15 | . 7 8 Kinetic . | . . . Secondary 1 | . 1 . Self-Inflicted Damage . | . . . Shots . | . . . Rammed . | . . . Targets Rammed . | . . . Kicked . | . . . Crushed . | . . . Highest Temperature 251 | . . 251 Average Temperature 135 | . . 135 Received Heat Transfer 655 | . 219 436 Siege Activations . | . . . Martial Activations . | . . . Shielding Activations . | . . . Robots Disrupted . | . . . Combat Hostiles . | . . . Robots Corrupted 12 | . 8 4 Combat Hostiles 8 | . 4 4 Parts Fried 18 | . 13 5 Impact Corruptions 31 | . 26 5 Robots Melted . | . . . Combat Hostiles . | . . . Parts Melted . | . . . Heat Transferred . | . . . Parts Sabotaged . | . . . Parts Stolen . | . . . Parts Stripped . | . . . Power Chain Reactions . | . . . Alert | -11 -10 -10 ------- Run | Yrd Mat Sub Maximum Alert Level . | . . . Low Security (%) 100 | 100 100 . Level 1 . | . . . Level 2 . | . . . Level 3 . | . . . Level 4 . | . . . Level 5 . | . . . High Security . | . . . Max Security . | . . . Peak Influence 187 | . 187 . Initial . | . . . Average 87 | . 98 . Influence Increases 354 | . 304 50 Destroy 0b10 Robot/C 240 | . 200 40 Destroy 0b10 Robot/NC 35 | . 35 . Destroy Leader 64 | . 54 10 Lose Combat Pursuer 15 | . 15 . Influence Decreases 354 | . 198 156 Entered New Map 52 | . . 52 Time Decay 282 | . 178 104 Lost Part 20 | . 20 . Squads Dispatched 3 | . 3 . Investigation 2 | . 2 . Extermination . | . . . Reinforcement 1 | . 1 . Assault . | . . . Garrison . | . . . Intercept . | . . . Searches Triggered . | . . . Construction Impeded . | . . . Haulers Reinforced . | . . . Active Scanning Responses . | . . . Cargo Convoy Interrupts . | . . . Stealth | -11 -10 -10 --------- Run | Yrd Mat Sub Distress Signals 1 | . 1 . Communications Jammed . | . . . Distress Signals . | . . . Times Spotted 21 | . 13 8 Peak Tracking Total 5 | . 5 2 Tactical Retreats 2 | . 1 1 Traps | -11 -10 -10 ------- Run | Yrd Mat Sub Traps Triggered 3 | . 2 1 Indirectly . | . . . Trap Hack Attempts . | . . . Triggered . | . . . Disarmed . | . . . Reprogrammed . | . . . Reused . | . . . Traps Extracted . | . . . Installed . | . . . Triggered . | . . . Machines | -11 -10 -10 ---------- Run | Yrd Mat Sub Machines Disabled . | . . . Max in Single Turn . | . . . Machines Repaired . | . . . Machines Dismantled . | . . . Machines Sabotaged . | . . . Overloaded Fab Kills . | . . . Hacking | -11 -10 -10 --------- Run | Yrd Mat Sub Machines Accessed 1 | . . 1 Terminals . | . . . Fabricators . | . . . Repair Stations . | . . . Recycling Units . | . . . Scanalyzers . | . . . Garrison Access . | . . . Total Hacks 4 | . . 4 Successful 4 | . . 4 Failed . | . . . Catastrophic . | . . . Database Lockouts . | . . . Manual . | . . . Terminals . | . . . Fabricators . | . . . Repair Stations . | . . . Recycling Units . | . . . Scanalyzers . | . . . Garrison Access . | . . . Terminal Hacks 4 | . . 4 Record 4 | . . 4 Fabricator Hacks . | . . . Repair Station Hacks . | . . . Recycling Unit Hacks . | . . . Scanalyzer . | . . . Garrison Access Hacks . | . . . Unauthorized Hacks . | . . . Terminals . | . . . Fabricators . | . . . Repair Stations . | . . . Recycling Units . | . . . Scanalyzers . | . . . Garrison Access . | . . . Data Cores Recovered . | . . . Used . | . . . Hacking Detections . | . . . Full Trace Events . | . . . Feedback Events . | . . . Feedback Blocked . | . . . Robot Schematics Acquired . | . . . Robots Built . | . . . Authchips . | . . . Time . | . . . Total Robot Build Rating . | . . . Part Schematics Acquired . | . . . Parts Built . | . . . Authchips . | . . . Time . | . . . Total Part Build Rating . | . . . Parts Repaired . | . . . Time . | . . . Parts Recycled . | . . . Recycled Matter . | . . . Retrieved Matter . | . . . Retrieved Components . | . . . Parts Scanalyzed . | . . . Part Schematics Acquired . | . . . Parts Damaged . | . . . Bothacking | -11 -10 -10 ------------ Run | Yrd Mat Sub Used RIF Installer . | . . . Robots Hacked . | . . . Non-combat . | . . . Combat . | . . . Robot Hacks Applied . | . . . Relay Couplers Released . | . . . Fabnet Peak Effective % . | . . . Robots Rewired . | . . . Allies Hacked . | . . . Hacks Repelled . | . . . Allies | -11 -10 -10 -------- Run | Yrd Mat Sub Total Allies . | . . . Largest Group . | . . . Highest-Rated Group . | . . . Highest-Rated Ally . | . . . Total Orders . | . . . Ally Attacks . | . . . Total Damage . | . . . Kills . | . . . Allies Corrupted . | . . . Allies Melted . | . . . Intel | -11 -10 -10 ------- Run | Yrd Mat Sub Active Infowar (turns) 679 | . . 679 Sensors 679 | . . 679 Robot Analysis Total . | . . . Derelict Logs Recovered 1 | . . 1 Drone Launches . | . . . Drone Recoveries . | . . . Exploration | -11 -10 -10 ------------- Run | Yrd Mat Sub Turns Passed 1906 | 53 400 1453 Spaces Moved 1164 | 43 177 944 Core 305 | 15 . 290 Treads . | . . . Legs 758 | 28 177 553 Wheels 101 | . . 101 Hover . | . . . Flight . | . . . Fastest Speed 50 | 50 120 110 Average Speed 139 | 95 121 145 Slowest Speed 200 | 120 190 200 Overloaded Moves . | . . . Propulsion Burnouts . | . . . Robots Hopped . | . . . Potential Cave-ins . | . . . Cave-ins Triggered . | . . . Exploration Rate (%) 33 | 3 42 56 Regions Visited 2 Branch Regions 1 Pre-discovered Areas . | . . . Known Exits Taken 1 | . 1 . Unknown Exits Taken 1 | 1 . . Scrap Searched . | . . . Spaces Dug . | . . . Terrain Destroyed . | . . . Melee . | . . . Projectile . | . . . AOE . | . . . Terrain Rammed . | . . . Walls Destroyed . | . . . Machines Disabled . | . . . Actions | -11 -10 -10 --------- Run | Yrd Mat Sub Total 1341 | 55 295 991 Wait 71 | . 64 7 Move 1162 | 42 176 944 Hop . | . . . Pick Up 22 | 7 9 6 Fast Attach . | . . . Attach 13 | 6 5 2 Detach 2 | . 2 . Swap 5 | . 1 4 Drop 7 | . 1 6 Fire . | . . . Melee 59 | . 37 22 Ram . | . . . Kick . | . . . Crush . | . . . Escape Stasis . | . . . Rewire . | . . . Trap . | . . . Miscellaneous . | . . . Route ------- -11/Scrapyard -10/Materials (discovered 4 exits: [*Mat] / *Min x2 / *Sub) -10/Subcaves (discovered 2 exits: *Mat x2) History --------- Turn | Location | Event 4 | -11/Scrapyard | Discovered new exit (range 15) 54 | -11/Scrapyard | Entered Materials 76 | -10/Materials | Discovered new exit (range 13) 234 | -10/Materials | Discovered new exit (range 16) 317 | -10/Materials | Build established: Mutant 362 | -10/Materials | Discovered new exit (range 16) 387 | -10/Materials | Identified exit to Mines 445 | -10/Materials | Discovered new exit (range 5) 452 | -10/Materials | Identified exit to Subcaves 454 | -10/Materials | Entered Subcaves 816 | -10/Subcaves | Core integrity fell below 50% 993 | -10/Subcaves | Discovered new exit (range 10) 1005 | -10/Subcaves | Identified exit to Materials 1062 | -10/Subcaves | Core integrity fell below 20% 1126 | -10/Subcaves | Shifting Twisted Machinery released Mak. Axe 1165 | -10/Subcaves | Shifting Twisted Machinery released Slug Cannon 1168 | -10/Subcaves | Ambushed by Subdwellers from Twisted Machinery 1238 | -10/Subcaves | Lost 3 parts (2n1u) 1312 | -10/Subcaves | Discovered exit to Materials (range 3) 1314 | -10/Subcaves | Shifting Twisted Machinery released Battle Cannon 1334 | -10/Subcaves | Learned Materials terminal intel 1338 | -10/Subcaves | Visited Clippyterm 1344 | -10/Subcaves | Learned Factory trap positions 1344 | -10/Subcaves | Learned 40 Factory zone layouts 1907 | -10/Subcaves | Destroyed by Shrapnel Trap Last Messages --------------- Data stored: Factory zone layouts (x40). >>Record! "Botnets" It looks like you seek to become a more effective hacker when it comes to the important hacks, and I heartily recommend installing Trojan(Botnet) on at least one or two Terminals to improve your odds of success elsewhere. >>Record! "Bogan" It looks like you're interested in the dark side, V4-D3R would be pleased, though I don't think they're in the habit of teaching apprentices. 01458_ Acquired 3 matter. 01756_ Dropped Sub. Power Source. 01765_ Subatomizers dissect the Sub. Power Source. 01907_ Triggered Shrapnel Trap. 01907_ An expanding cloud of shrapnel blasts out in all directions. Map ----- +----------------------------------------------------+ | ?????????????????????????????????????????????????? | | ?????????????????????????????????????????????????? | | ?????????????????????????????????????????????????? | | ?????????????????????????????????????????????????? | | ?????????????????????????????????????????????????? | | ?????????????????????????????????????????????????? | | ?????????????????????????????????????????????????? | | ?????????????????????????????????????????????????? | | ?????????????????????????????????????????????????? | | ?????????????????????????????????????????????????? | | ?????????????????????????????????????????????????? | | ?????????????????????????????????????????????????? | | ?????????????????????????????????????????????????? | | ?????????????????????????????????????????????????? | | ?????????????????????????????????????????????????? | | ?????????????????????????????????????????????????? | | ?????????????????????????????????????????????????? | | ?????????????????????????????????????????????????? | | ?????????????????????????????????????????????????? | | ?????????????????????????????????????????????????? | | ?????????????????????????????????????????????????? | | ?????????????????????????????????????????????????? | | ?????????????????????????????????????????????????? | | ???????????????????????######????????????????????? | | ??????????????????????## #????????????????????? | | ?????????????????????## @ #?????????????????????? | | #???????????????###### ##?????????????????????? | | #???????????????# ^ #???###????????????????? | | ????????????????# #??## #####????????????? | | #???????????????# ##### #????????????? | | #?###???????????#^ ### ## #####????????? | | ## ??????????## ## #### # ##?###???? | | ## ???????????# ^ ##?# ## ## #???? | | ## ????????????# ##??# # #??## | | ## #????????????# ^ ### ##???## #??# | | ?# ##?????????# ^ #??## #????# ###??## | | ## #?????????## #????## ##??### ##?????# | | #?????????# ?????? #### ##???## | | ##?######?## ??????# ##### | | ## ???# ??????? # # ### "" #"# | | ??? ???????#?# ##?###" " " | | #????? ? ????????### ####?# "" " | | ##??????## ??????????# ### "#"# "" | | ##????? #???????????# "" ## "#### | | ##### #??????????### """ ""#?## | | #??????????## ##& """ "##??## | | #??????????# %% ! """ ""#????# | | ## ## #??????#### & = """##??### | | ##### #???? #######??# # # ### #####?### # | | ????# ##?????## ##?# # # ##?#""#???### | +----------------------------------------------------+ Best States ------------- Heat Dissipation 25 Energy Generation 15 Energy Capacity 200 Matter Stores 300 Matter Capacity 300 Sight Range 16 Robot Scan Range 14 Terrain Scan Density 10 Evasion (%) 55 Item Schematics ----------------- None Robot Schematics ------------------ None Fabricated ------------ Nothing Repaired ---------- Nothing Alien Tech Used ----------------- None Achievements -------------- None Challenges ------------ None Game ------ Seed GhostTransmissionVibroblade Manual? 0 Play Time 00:12:03 Cumulative 62.0 hours Start 2025.05.16 @ 12:30:49 End 2025.05.16 @ 12:59:21 Sessions 1 Manual Loads 0 Difficulty Rogue Special Mode None Game No. 146 Rogue 146 Adventurer 0 Explorer 0 Win Type - Total 1 Types 1/0/0/0/0/0/0/0/0/0 Lore% 29 Gallery% 37 Achievement% 33 Wizard Run 0 Options --------- Layout 1 ASCII 0 Keyboard 0 Movement Mouse Keybinds 0 Fullscreen 0 Font 28/SmallcapsGlow Map View 50x35 Zoom Use 0% Tactical HUD 1 Map Filters NONE Filters NONE Steam 1 RUN: b3604a5a-34a5-408b-955c-a25e7cae2ca9